[Event "Titled Tuesday Blitz August 22 Early 2023"]
[White "Kavutskiy, Konstantin"]
[Black "Balabayeva, Xeniya"]
[WhiteFideId "2026384"]
[BlackFideId "13719688"]
[WhiteElo "2685"]
[BlackElo "2525"]
[Result "1-0"]
[Round "6"]
[TimeControl "180+1"]
[Date "2023.08.22"]
[WhiteClock "0:00:50"]
[BlackClock "0:00:00"]
[Board "69"]

1. Nf3 {[%clk 0:02:56]}  d5 {[%clk 0:02:56]} 2. e3 {[%clk 0:02:54]}  Nf6 {[%clk 0:02:53]} 3. c4 {[%clk 0:02:54]}  g6 {[%clk 0:02:51]} 4. Nc3 {[%clk 0:02:47]}  Bg7 {[%clk 0:02:47]} 5. Qb3 {[%clk 0:02:43]}  dxc4 {[%clk 0:02:42]} 6. Bxc4 {[%clk 0:02:43]}  O-O {[%clk 0:02:41]} 7. Ng5 {[%clk 0:02:41]}  e6 {[%clk 0:02:38]} 8. O-O {[%clk 0:02:27]}  Nc6 {[%clk 0:02:32]} 9. Bb5 {[%clk 0:02:16]}  Bd7 {[%clk 0:02:22]} 10. d4 {[%clk 0:02:08]}  Rb8 {[%clk 0:02:03]} 11. Bd2 {[%clk 0:02:04]}  a6 {[%clk 0:01:58]} 12. Be2 {[%clk 0:02:02]}  b5 {[%clk 0:01:51]} 13. Rac1 {[%clk 0:01:59]}  b4 {[%clk 0:01:25]} 14. Nce4 {[%clk 0:01:55]}  Nd5 {[%clk 0:01:14]} 15. Bxa6 {[%clk 0:01:49]}  Na5 {[%clk 0:01:04]} 16. Qd1 {[%clk 0:01:46]}  Bb5 {[%clk 0:00:25]} 17. Bxb5 {[%clk 0:01:44]}  Rxb5 {[%clk 0:00:26]} 18. Nf3 {[%clk 0:01:41]}  Qe7 {[%clk 0:00:18]} 19. Qe2 {[%clk 0:01:39]}  Rfb8 {[%clk 0:00:16]} 20. b3 {[%clk 0:01:38]}  c6 {[%clk 0:00:08]} 21. Nc5 {[%clk 0:01:35]}  e5 {[%clk 0:00:08]} 22. Na4 {[%clk 0:01:06]}  e4 {[%clk 0:00:07]} 23. Ne1 {[%clk 0:01:04]}  f5 {[%clk 0:00:06]} 24. Nc2 {[%clk 0:01:01]}  Qd6 {[%clk 0:00:05]} 25. f3 {[%clk 0:00:54]}  Re8 {[%clk 0:00:04]} 26. Nc5 {[%clk 0:00:48]}  exf3 {[%clk 0:00:04]} 27. Qxf3 {[%clk 0:00:49]}  Qe7 {[%clk 0:00:01]} 28. Rce1 {[%clk 0:00:49]}  Nb7 {[%clk 0:00:01]} 29. e4 {[%clk 0:00:50]}  fxe4 {[%clk 0:00:00]} 30. Nxe4 {[%clk 0:00:50]} 1-0


[Site "https://www.chess.com"]

[Event "Titled Tuesday Blitz August 22 Early 2023"]
[White "Koutlas, Nikolaos"]
[Black "Castellanos Villela, Alejandro"]
[WhiteFideId "25827138"]
[BlackFideId "3446379"]
[WhiteElo "2512"]
[BlackElo "2659"]
[Result "1-0"]
[Round "6"]
[TimeControl "180+1"]
[Date "2023.08.22"]
[WhiteClock "0:00:10"]
[BlackClock "0:00:00"]
[Board "72"]

1. e4 {[%clk 0:03:00]}  e5 {[%clk 0:02:58]} 2. Nf3 {[%clk 0:02:58]}  Nc6 {[%clk 0:02:59]} 3. Bc4 {[%clk 0:02:57]}  Nf6 {[%clk 0:02:59]} 4. d3 {[%clk 0:02:56]}  h6 {[%clk 0:02:58]} 5. O-O {[%clk 0:02:55]}  d6 {[%clk 0:02:59]} 6. d4 {[%clk 0:02:54]}  Qe7 {[%clk 0:02:48]} 7. Nc3 {[%clk 0:02:50]}  Bg4 {[%clk 0:02:41]} 8. dxe5 {[%clk 0:02:47]}  Nxe5 {[%clk 0:02:39]} 9. Nxe5 {[%clk 0:02:23]}  Bxd1 {[%clk 0:02:28]} 10. Nxf7 {[%clk 0:02:22]}  Bxc2 {[%clk 0:01:51]} 11. Nxh8 {[%clk 0:02:18]}  O-O-O {[%clk 0:01:50]} 12. Ng6 {[%clk 0:02:14]}  Qe8 {[%clk 0:01:48]} 13. Nxf8 {[%clk 0:02:02]}  Qxf8 {[%clk 0:01:48]} 14. f3 {[%clk 0:01:57]}  c6 {[%clk 0:01:40]} 15. Be3 {[%clk 0:01:54]}  d5 {[%clk 0:01:39]} 16. exd5 {[%clk 0:01:53]}  cxd5 {[%clk 0:01:39]} 17. Rac1 {[%clk 0:01:37]}  dxc4 {[%clk 0:01:38]} 18. Rxc2 {[%clk 0:01:36]}  Kb8 {[%clk 0:01:39]} 19. Nb5 {[%clk 0:01:32]}  a6 {[%clk 0:01:34]} 20. Bf4+ {[%clk 0:01:32]}  Ka8 {[%clk 0:01:33]} 21. Nc7+ {[%clk 0:01:32]}  Ka7 {[%clk 0:01:32]} 22. Ne6 {[%clk 0:01:32]}  Qe8 {[%clk 0:01:11]} 23. Nxd8 {[%clk 0:01:26]}  Nd5 {[%clk 0:01:06]} 24. Bg3 {[%clk 0:01:16]}  Qxd8 {[%clk 0:00:56]} 25. Rxc4 {[%clk 0:01:15]}  Ne7 {[%clk 0:00:31]} 26. Bf2+ {[%clk 0:01:07]}  Kb8 {[%clk 0:00:29]} 27. Re1 {[%clk 0:01:06]}  Nc6 {[%clk 0:00:29]} 28. Rce4 {[%clk 0:01:06]}  Kc7 {[%clk 0:00:23]} 29. a4 {[%clk 0:00:58]}  Qd2 {[%clk 0:00:20]} 30. b3 {[%clk 0:00:44]}  Qc3 {[%clk 0:00:17]} 31. R4e3 {[%clk 0:00:36]}  Qd2 {[%clk 0:00:17]} 32. h4 {[%clk 0:00:35]}  a5 {[%clk 0:00:17]} 33. Re4 {[%clk 0:00:33]}  Qc3 {[%clk 0:00:15]} 34. R1e3 {[%clk 0:00:33]}  Qc1+ {[%clk 0:00:10]} 35. Kh2 {[%clk 0:00:32]}  Qd2 {[%clk 0:00:10]} 36. Bg3+ {[%clk 0:00:32]}  Kb6 {[%clk 0:00:10]} 37. Re6 {[%clk 0:00:31]}  Qc2 {[%clk 0:00:07]} 38. Rd6 {[%clk 0:00:25]}  Ka6 {[%clk 0:00:06]} 39. Rdd3 {[%clk 0:00:13]}  Kb6 {[%clk 0:00:05]} 40. Rc3 {[%clk 0:00:13]}  Qd1 {[%clk 0:00:05]} 41. Bf2 {[%clk 0:00:12]}  Ka6 {[%clk 0:00:05]} 42. Re8 {[%clk 0:00:11]}  Qd2 {[%clk 0:00:00]} 43. Ra8+ {[%clk 0:00:10]} 1-0


[Site "https://www.chess.com"]

[Event "Titled Tuesday Blitz August 22 Early 2023"]
[White "Glavina, Pablo"]
[Black "Palchuk, Andrii"]
[WhiteFideId "100234"]
[BlackFideId "14176688"]
[WhiteElo "2515"]
[BlackElo "2657"]
[Result "0-1"]
[Round "6"]
[TimeControl "180+1"]
[Date "2023.08.22"]
[WhiteClock "0:00:44"]
[BlackClock "0:00:10"]
[Board "73"]

1. c4 {[%clk 0:03:00]}  e5 {[%clk 0:02:57]} 2. Nc3 {[%clk 0:03:00]}  d6 {[%clk 0:02:57]} 3. Nf3 {[%clk 0:02:58]}  f5 {[%clk 0:02:58]} 4. d4 {[%clk 0:02:58]}  e4 {[%clk 0:02:58]} 5. Ng1 {[%clk 0:02:58]}  Nf6 {[%clk 0:02:58]} 6. Bf4 {[%clk 0:02:59]}  c6 {[%clk 0:02:59]} 7. e3 {[%clk 0:02:59]}  Be7 {[%clk 0:02:57]} 8. h4 {[%clk 0:02:59]}  O-O {[%clk 0:02:57]} 9. Nh3 {[%clk 0:02:59]}  d5 {[%clk 0:02:56]} 10. Qb3 {[%clk 0:02:57]}  Kh8 {[%clk 0:02:55]} 11. cxd5 {[%clk 0:02:56]}  cxd5 {[%clk 0:02:46]} 12. Bxb8 {[%clk 0:02:50]}  Rxb8 {[%clk 0:02:45]} 13. Nf4 {[%clk 0:02:50]}  b5 {[%clk 0:01:38]} 14. a4 {[%clk 0:02:46]}  Qa5 {[%clk 0:01:15]} 15. Rc1 {[%clk 0:02:21]}  Bd6 {[%clk 0:00:47]} 16. Nxd5 {[%clk 0:02:14]}  Be6 {[%clk 0:00:47]} 17. axb5 {[%clk 0:01:47]}  Bxd5 {[%clk 0:00:40]} 18. Bc4 {[%clk 0:01:40]}  Bxc4 {[%clk 0:00:37]} 19. Qxc4 {[%clk 0:01:41]}  Rfc8 {[%clk 0:00:36]} 20. Qe6 {[%clk 0:01:39]}  Bb4 {[%clk 0:00:21]} 21. O-O {[%clk 0:01:38]}  Bxc3 {[%clk 0:00:20]} 22. bxc3 {[%clk 0:01:38]}  Qxb5 {[%clk 0:00:21]} 23. c4 {[%clk 0:01:31]}  Qd7 {[%clk 0:00:21]} 24. Qa6 {[%clk 0:01:32]}  Ng4 {[%clk 0:00:17]} 25. g3 {[%clk 0:01:30]}  Rb2 {[%clk 0:00:15]} 26. c5 {[%clk 0:01:28]}  Qc7 {[%clk 0:00:15]} 27. d5 {[%clk 0:01:05]}  Rf8 {[%clk 0:00:13]} 28. d6 {[%clk 0:01:03]}  Qd7 {[%clk 0:00:12]} 29. Qa3 {[%clk 0:01:01]}  Rd2 {[%clk 0:00:11]} 30. c6 {[%clk 0:00:49]}  Qxd6 {[%clk 0:00:12]} 31. Qxd6 {[%clk 0:00:49]}  Rxd6 {[%clk 0:00:12]} 32. c7 {[%clk 0:00:50]}  Rc8 {[%clk 0:00:12]} 33. Rfd1 {[%clk 0:00:44]}  Rxc7 {[%clk 0:00:10]} 0-1


[Site "https://www.chess.com"]

[Event "Titled Tuesday Blitz August 22 Early 2023"]
[White "Khamdamova, Afruza"]
[Black "Frolyanov, Dmitry"]
[WhiteFideId "14210444"]
[BlackFideId "4151976"]
[WhiteElo "2499"]
[BlackElo "2638"]
[Result "0-1"]
[Round "6"]
[TimeControl "180+1"]
[Date "2023.08.22"]
[WhiteClock "0:00:12"]
[BlackClock "0:00:14"]
[Board "80"]

1. e4 {[%clk 0:03:00]}  e5 {[%clk 0:02:59]} 2. Nf3 {[%clk 0:03:01]}  Nf6 {[%clk 0:02:59]} 3. Nxe5 {[%clk 0:02:59]}  d6 {[%clk 0:02:59]} 4. Nf3 {[%clk 0:02:59]}  Nxe4 {[%clk 0:02:59]} 5. d4 {[%clk 0:02:59]}  d5 {[%clk 0:03:00]} 6. Bd3 {[%clk 0:02:59]}  Bd6 {[%clk 0:03:00]} 7. O-O {[%clk 0:02:59]}  O-O {[%clk 0:03:00]} 8. c4 {[%clk 0:02:59]}  c6 {[%clk 0:03:00]} 9. Nc3 {[%clk 0:02:58]}  Nxc3 {[%clk 0:03:00]} 10. bxc3 {[%clk 0:02:58]}  dxc4 {[%clk 0:03:01]} 11. Bxc4 {[%clk 0:02:58]}  Bg4 {[%clk 0:03:02]} 12. h3 {[%clk 0:02:57]}  Bh5 {[%clk 0:03:02]} 13. Rb1 {[%clk 0:02:54]}  b5 {[%clk 0:03:01]} 14. Bd3 {[%clk 0:02:53]}  Nd7 {[%clk 0:03:00]} 15. Be3 {[%clk 0:02:48]}  a6 {[%clk 0:02:57]} 16. Be4 {[%clk 0:02:41]}  Rc8 {[%clk 0:02:48]} 17. Qc2 {[%clk 0:02:18]}  Nf6 {[%clk 0:02:25]} 18. Bg5 {[%clk 0:02:18]}  h6 {[%clk 0:02:23]} 19. Bh4 {[%clk 0:02:15]}  g5 {[%clk 0:02:18]} 20. Bg3 {[%clk 0:02:09]}  Bxg3 {[%clk 0:02:17]} 21. fxg3 {[%clk 0:02:09]}  Nxe4 {[%clk 0:02:17]} 22. Qxe4 {[%clk 0:02:07]}  Bg6 {[%clk 0:02:18]} 23. Qe5 {[%clk 0:01:58]}  Bxb1 {[%clk 0:02:18]} 24. Rxb1 {[%clk 0:01:58]}  Qd5 {[%clk 0:02:09]} 25. Qe2 {[%clk 0:01:41]}  Rfe8 {[%clk 0:02:08]} 26. Qf2 {[%clk 0:01:40]}  Qf5 {[%clk 0:02:02]} 27. Rf1 {[%clk 0:01:36]}  Re7 {[%clk 0:01:56]} 28. g4 {[%clk 0:01:36]}  Qf4 {[%clk 0:01:53]} 29. Qc2 {[%clk 0:01:31]}  Qe4 {[%clk 0:01:50]} 30. Qb3 {[%clk 0:01:28]}  Qe3+ {[%clk 0:01:35]} 31. Kh1 {[%clk 0:01:28]}  Qd3 {[%clk 0:01:35]} 32. Kg1 {[%clk 0:01:21]}  Qc4 {[%clk 0:01:11]} 33. Qb1 {[%clk 0:01:08]}  Qxc3 {[%clk 0:01:06]} 34. Qf5 {[%clk 0:01:06]}  Rce8 {[%clk 0:01:05]} 35. Kh2 {[%clk 0:01:02]}  Qe3 {[%clk 0:01:01]} 36. Qc5 {[%clk 0:00:59]}  Qf4+ {[%clk 0:01:00]} 37. Kh1 {[%clk 0:00:58]}  Qf6 {[%clk 0:00:53]} 38. Qc1 {[%clk 0:00:49]}  Qd6 {[%clk 0:00:49]} 39. Ne5 {[%clk 0:00:46]}  c5 {[%clk 0:00:38]} 40. Rf5 {[%clk 0:00:20]}  cxd4 {[%clk 0:00:32]} 41. Nf3 {[%clk 0:00:20]}  d3 {[%clk 0:00:22]} 42. h4 {[%clk 0:00:12]}  Re1+ {[%clk 0:00:14]} 0-1


[Site "https://www.chess.com"]

[Event "Titled Tuesday Blitz August 22 Early 2023"]
[White "Maus7"]
[Black "HamedWafa4"]
[WhiteElo "2481"]
[BlackElo "2628"]
[Result "1-0"]
[Round "6"]
[TimeControl "180+1"]
[Date "2023.08.22"]
[WhiteClock "0:00:18"]
[BlackClock "0:01:44"]
[Board "84"]

1. e4 {[%clk 0:03:00]}  e5 {[%clk 0:02:59]} 2. Nf3 {[%clk 0:03:01]}  Nc6 {[%clk 0:02:57]} 3. Bb5 {[%clk 0:03:02]}  a6 {[%clk 0:02:57]} 4. Ba4 {[%clk 0:03:02]}  Nf6 {[%clk 0:02:56]} 5. O-O {[%clk 0:03:03]}  Be7 {[%clk 0:02:56]} 6. Re1 {[%clk 0:03:02]}  b5 {[%clk 0:02:57]} 7. Bb3 {[%clk 0:03:03]}  O-O {[%clk 0:02:57]} 8. a4 {[%clk 0:03:02]}  d5 {[%clk 0:02:57]} 9. axb5 {[%clk 0:02:57]}  dxe4 {[%clk 0:02:56]} 10. bxc6 {[%clk 0:02:57]}  exf3 {[%clk 0:02:57]} 11. Qxf3 {[%clk 0:02:58]}  e4 {[%clk 0:02:58]} 12. Qe2 {[%clk 0:02:55]}  Bd6 {[%clk 0:02:57]} 13. h3 {[%clk 0:02:50]}  Re8 {[%clk 0:02:55]} 14. Nc3 {[%clk 0:02:51]}  Re5 {[%clk 0:02:54]} 15. Ra4 {[%clk 0:02:46]}  Bxh3 {[%clk 0:02:53]} 16. gxh3 {[%clk 0:02:18]}  Rg5+ {[%clk 0:02:52]} 17. Kf1 {[%clk 0:02:17]}  Qc8 {[%clk 0:02:53]} 18. Qe3 {[%clk 0:02:14]}  Rg3 {[%clk 0:02:51]} 19. fxg3 {[%clk 0:01:47]}  Qxh3+ {[%clk 0:02:50]} 20. Ke2 {[%clk 0:01:24]}  Qh5+ {[%clk 0:02:47]} 21. Kf1 {[%clk 0:01:19]}  Qh1+ {[%clk 0:02:40]} 22. Qg1 {[%clk 0:01:04]}  Qf3+ {[%clk 0:02:34]} 23. Qf2 {[%clk 0:01:04]}  Qh1+ {[%clk 0:02:34]} 24. Qg1 {[%clk 0:01:04]}  Qf3+ {[%clk 0:02:32]} 25. Qf2 {[%clk 0:01:05]}  Qh1+ {[%clk 0:02:31]} 26. Ke2 {[%clk 0:00:40]}  Qh5+ {[%clk 0:02:29]} 27. g4 {[%clk 0:00:41]}  Nxg4 {[%clk 0:02:24]} 28. Qxf7+ {[%clk 0:00:38]}  Qxf7 {[%clk 0:02:14]} 29. Bxf7+ {[%clk 0:00:39]}  Kxf7 {[%clk 0:02:14]} 30. Nxe4 {[%clk 0:00:40]}  Be7 {[%clk 0:02:08]} 31. d3 {[%clk 0:00:37]}  Ne5 {[%clk 0:02:07]} 32. Bf4 {[%clk 0:00:34]}  Nxc6 {[%clk 0:02:06]} 33. Bxc7 {[%clk 0:00:34]}  Rc8 {[%clk 0:02:06]} 34. Bd6 {[%clk 0:00:33]}  Bd8 {[%clk 0:02:04]} 35. Rf1+ {[%clk 0:00:29]}  Ke6 {[%clk 0:02:03]} 36. Ba3 {[%clk 0:00:27]}  Ne5 {[%clk 0:02:00]} 37. Rxa6+ {[%clk 0:00:26]}  Kd7 {[%clk 0:01:57]} 38. Rd6+ {[%clk 0:00:20]}  Kc7 {[%clk 0:01:53]} 39. Rd5 {[%clk 0:00:20]}  Nc6 {[%clk 0:01:51]} 40. Bd6+ {[%clk 0:00:19]}  Kb6 {[%clk 0:01:51]} 41. Bc5+ {[%clk 0:00:19]}  Kb5 {[%clk 0:01:46]} 42. Nd6+ {[%clk 0:00:18]}  Ka5 {[%clk 0:01:44]} 43. Ra1# {[%clk 0:00:18]} 1-0


[Site "https://www.chess.com"]

[Event "Titled Tuesday Blitz August 22 Early 2023"]
[White "KrokerGuy"]
[Black "Bodnaruk, Anastasia"]
[BlackFideId "4181751"]
[WhiteElo "2480"]
[BlackElo "2618"]
[Result "1-0"]
[Round "6"]
[TimeControl "180+1"]
[Date "2023.08.22"]
[WhiteClock "0:00:02"]
[BlackClock "0:00:00"]
[Board "86"]

1. e4 {[%clk 0:03:00]}  c5 {[%clk 0:02:59]} 2. Nf3 {[%clk 0:03:00]}  d6 {[%clk 0:02:59]} 3. d4 {[%clk 0:03:01]}  cxd4 {[%clk 0:03:00]} 4. Nxd4 {[%clk 0:03:02]}  Nf6 {[%clk 0:03:00]} 5. Nc3 {[%clk 0:03:03]}  a6 {[%clk 0:03:01]} 6. Bg5 {[%clk 0:03:03]}  Nbd7 {[%clk 0:02:59]} 7. Qe2 {[%clk 0:03:03]}  Qc7 {[%clk 0:02:42]} 8. f4 {[%clk 0:03:00]}  e6 {[%clk 0:02:40]} 9. O-O-O {[%clk 0:03:00]}  b5 {[%clk 0:02:40]} 10. a3 {[%clk 0:03:00]}  Bb7 {[%clk 0:02:39]} 11. g4 {[%clk 0:03:00]}  Be7 {[%clk 0:02:36]} 12. Kb1 {[%clk 0:02:55]}  Nb6 {[%clk 0:02:27]} 13. Rg1 {[%clk 0:02:38]}  d5 {[%clk 0:01:55]} 14. Bxf6 {[%clk 0:02:34]}  gxf6 {[%clk 0:01:44]} 15. Rg3 {[%clk 0:01:30]}  dxe4 {[%clk 0:01:35]} 16. Nxe4 {[%clk 0:01:13]}  Nd5 {[%clk 0:01:34]} 17. f5 {[%clk 0:01:03]}  e5 {[%clk 0:01:29]} 18. Nb3 {[%clk 0:01:01]}  Rc8 {[%clk 0:01:18]} 19. Qd2 {[%clk 0:00:36]}  Rd8 {[%clk 0:01:04]} 20. Bd3 {[%clk 0:00:27]}  Nf4 {[%clk 0:00:58]} 21. Qe3 {[%clk 0:00:24]}  Bd5 {[%clk 0:00:48]} 22. Nc1 {[%clk 0:00:21]}  Qc6 {[%clk 0:00:37]} 23. Nc3 {[%clk 0:00:16]}  Nxd3 {[%clk 0:00:25]} 24. Nxd3 {[%clk 0:00:14]}  Bc4 {[%clk 0:00:25]} 25. g5 {[%clk 0:00:10]}  a5 {[%clk 0:00:11]} 26. gxf6 {[%clk 0:00:09]}  Bxf6 {[%clk 0:00:11]} 27. Nxe5 {[%clk 0:00:08]}  Rxd1+ {[%clk 0:00:10]} 28. Nxd1 {[%clk 0:00:09]}  Qd5 {[%clk 0:00:02]} 29. Ng6+ {[%clk 0:00:06]}  Kd8 {[%clk 0:00:02]} 30. Nf2 {[%clk 0:00:01]}  hxg6 {[%clk 0:00:00]} 31. Qa7 {[%clk 0:00:02]} 1-0


[Site "https://www.chess.com"]

[Event "Titled Tuesday Blitz August 22 Early 2023"]
[White "Vlassov, Nikolai"]
[Black "Swicarz, Maciej"]
[WhiteFideId "4103360"]
[BlackFideId "1113585"]
[WhiteElo "2615"]
[BlackElo "2470"]
[Result "1-0"]
[Round "6"]
[TimeControl "180+1"]
[Date "2023.08.22"]
[WhiteClock "0:00:17"]
[BlackClock "0:00:09"]
[Board "87"]

1. e4 {[%clk 0:03:00]}  c5 {[%clk 0:02:59]} 2. c3 {[%clk 0:02:52]}  Nf6 {[%clk 0:02:58]} 3. e5 {[%clk 0:02:52]}  Nd5 {[%clk 0:02:58]} 4. d4 {[%clk 0:02:53]}  cxd4 {[%clk 0:02:58]} 5. cxd4 {[%clk 0:02:54]}  d6 {[%clk 0:02:59]} 6. Bc4 {[%clk 0:02:53]}  Nb6 {[%clk 0:02:59]} 7. Bb3 {[%clk 0:02:54]}  Nc6 {[%clk 0:02:58]} 8. e6 {[%clk 0:02:53]}  fxe6 {[%clk 0:02:55]} 9. Nf3 {[%clk 0:02:53]}  g6 {[%clk 0:02:48]} 10. h4 {[%clk 0:02:53]}  Bg7 {[%clk 0:02:47]} 11. h5 {[%clk 0:02:53]}  Nd5 {[%clk 0:02:32]} 12. Nc3 {[%clk 0:02:48]}  Nxc3 {[%clk 0:02:25]} 13. bxc3 {[%clk 0:02:49]}  Qa5 {[%clk 0:02:21]} 14. Bd2 {[%clk 0:02:30]}  Qf5 {[%clk 0:02:20]} 15. Bc2 {[%clk 0:02:05]}  Qg4 {[%clk 0:02:19]} 16. Qe2 {[%clk 0:02:05]}  Bd7 {[%clk 0:02:11]} 17. O-O-O {[%clk 0:01:59]}  e5 {[%clk 0:01:57]} 18. Rh4 {[%clk 0:01:45]}  Qe6 {[%clk 0:01:55]} 19. Bb3 {[%clk 0:01:46]}  Qf6 {[%clk 0:01:50]} 20. Bg5 {[%clk 0:01:39]}  Qf5 {[%clk 0:01:43]} 21. Bc2 {[%clk 0:01:36]}  Qf7 {[%clk 0:01:38]} 22. d5 {[%clk 0:01:22]}  Na5 {[%clk 0:01:34]} 23. hxg6 {[%clk 0:01:18]}  hxg6 {[%clk 0:01:33]} 24. Rxh8+ {[%clk 0:01:18]}  Bxh8 {[%clk 0:01:33]} 25. Nh4 {[%clk 0:01:18]}  O-O-O {[%clk 0:01:25]} 26. Bxg6 {[%clk 0:01:11]}  Qg7 {[%clk 0:01:25]} 27. Be3 {[%clk 0:01:02]}  Kb8 {[%clk 0:01:17]} 28. Be4 {[%clk 0:01:01]}  Rc8 {[%clk 0:01:15]} 29. Qd3 {[%clk 0:00:54]}  a6 {[%clk 0:01:08]} 30. Rh1 {[%clk 0:00:49]}  Bb5 {[%clk 0:01:08]} 31. Qc2 {[%clk 0:00:47]}  Qf7 {[%clk 0:00:48]} 32. Nf5 {[%clk 0:00:43]}  Bf6 {[%clk 0:00:45]} 33. g4 {[%clk 0:00:42]}  Nc4 {[%clk 0:00:29]} 34. a4 {[%clk 0:00:36]}  Bd7 {[%clk 0:00:28]} 35. Bh6 {[%clk 0:00:31]}  Rg8 {[%clk 0:00:24]} 36. f3 {[%clk 0:00:28]}  Bxf5 {[%clk 0:00:19]} 37. gxf5 {[%clk 0:00:23]}  Bg5+ {[%clk 0:00:15]} 38. Bxg5 {[%clk 0:00:22]}  Rxg5 {[%clk 0:00:16]} 39. Qf2 {[%clk 0:00:21]}  Rg8 {[%clk 0:00:14]} 40. Kc2 {[%clk 0:00:19]}  Qe8 {[%clk 0:00:13]} 41. Kd3 {[%clk 0:00:19]}  Qxa4 {[%clk 0:00:12]} 42. Rg1 {[%clk 0:00:18]}  Rc8 {[%clk 0:00:11]} 43. f6 {[%clk 0:00:18]}  Qd1+ {[%clk 0:00:09]} 44. Rxd1 {[%clk 0:00:17]} 1-0


[Site "https://www.chess.com"]

[Event "Titled Tuesday Blitz August 22 Early 2023"]
[White "LeoLV10"]
[Black "Erzhanov, Arman"]
[BlackFideId "4138821"]
[WhiteElo "2457"]
[BlackElo "2612"]
[Result "1-0"]
[Round "6"]
[TimeControl "180+1"]
[Date "2023.08.22"]
[WhiteClock "0:00:09"]
[BlackClock "0:01:23"]
[Board "89"]

1. e4 {[%clk 0:03:00]}  d6 {[%clk 0:03:00]} 2. d4 {[%clk 0:02:59]}  Nf6 {[%clk 0:02:58]} 3. Nc3 {[%clk 0:02:59]}  c6 {[%clk 0:02:58]} 4. f4 {[%clk 0:02:54]}  d5 {[%clk 0:02:58]} 5. e5 {[%clk 0:02:53]}  Ng8 {[%clk 0:02:59]} 6. h3 {[%clk 0:02:52]}  h5 {[%clk 0:02:59]} 7. Nf3 {[%clk 0:02:52]}  Nh6 {[%clk 0:02:56]} 8. Be3 {[%clk 0:02:52]}  Bf5 {[%clk 0:02:56]} 9. Bf2 {[%clk 0:02:52]}  e6 {[%clk 0:02:56]} 10. Be2 {[%clk 0:02:51]}  Be7 {[%clk 0:02:57]} 11. Qd2 {[%clk 0:02:49]}  h4 {[%clk 0:02:57]} 12. a3 {[%clk 0:02:42]}  Nd7 {[%clk 0:02:57]} 13. O-O {[%clk 0:02:36]}  Bg6 {[%clk 0:02:57]} 14. Rfc1 {[%clk 0:02:26]}  Nf5 {[%clk 0:02:57]} 15. Nd1 {[%clk 0:02:26]}  c5 {[%clk 0:02:57]} 16. c3 {[%clk 0:02:23]}  c4 {[%clk 0:02:57]} 17. b3 {[%clk 0:02:21]}  b5 {[%clk 0:02:56]} 18. a4 {[%clk 0:02:19]}  a6 {[%clk 0:02:57]} 19. axb5 {[%clk 0:02:16]}  axb5 {[%clk 0:02:57]} 20. bxc4 {[%clk 0:02:17]}  bxc4 {[%clk 0:02:57]} 21. Ne3 {[%clk 0:02:11]}  Nxe3 {[%clk 0:02:56]} 22. Bxe3 {[%clk 0:02:12]}  Be4 {[%clk 0:02:56]} 23. Rxa8 {[%clk 0:01:54]}  Qxa8 {[%clk 0:02:56]} 24. Qb2 {[%clk 0:01:55]}  O-O {[%clk 0:02:50]} 25. Ra1 {[%clk 0:01:55]}  Qc6 {[%clk 0:02:47]} 26. Ra7 {[%clk 0:01:43]}  Rb8 {[%clk 0:02:46]} 27. Qa2 {[%clk 0:01:43]}  g6 {[%clk 0:02:39]} 28. Bf2 {[%clk 0:01:39]}  Bxf3 {[%clk 0:02:37]} 29. Bxf3 {[%clk 0:01:40]}  Kg7 {[%clk 0:02:34]} 30. Bd1 {[%clk 0:01:36]}  Rb7 {[%clk 0:02:29]} 31. Ra6 {[%clk 0:01:29]}  Qc7 {[%clk 0:02:26]} 32. Ba4 {[%clk 0:01:18]}  Nb8 {[%clk 0:02:16]} 33. Ra8 {[%clk 0:01:11]}  Ra7 {[%clk 0:02:16]} 34. Rxa7 {[%clk 0:01:07]}  Qxa7 {[%clk 0:02:17]} 35. Bb3 {[%clk 0:00:59]}  Qb6 {[%clk 0:02:16]} 36. Bc2 {[%clk 0:00:59]}  Nc6 {[%clk 0:02:16]} 37. Qb1 {[%clk 0:00:21]}  Qa6 {[%clk 0:02:04]} 38. Qe1 {[%clk 0:00:19]}  Qa2 {[%clk 0:01:59]} 39. Bb1 {[%clk 0:00:17]}  Qb2 {[%clk 0:01:59]} 40. Kh2 {[%clk 0:00:15]}  Na5 {[%clk 0:01:56]} 41. Bxh4 {[%clk 0:00:08]}  Bxh4 {[%clk 0:01:56]} 42. Qxh4 {[%clk 0:00:09]}  Nc6 {[%clk 0:01:44]} 43. Qf6+ {[%clk 0:00:10]}  Kg8 {[%clk 0:01:45]} 44. Bxg6 {[%clk 0:00:10]}  fxg6 {[%clk 0:01:44]} 45. Qxe6+ {[%clk 0:00:10]}  Kg7 {[%clk 0:01:45]} 46. Qd7+ {[%clk 0:00:08]}  Kh6 {[%clk 0:01:44]} 47. Qxc6 {[%clk 0:00:08]}  Qxc3 {[%clk 0:01:45]} 48. f5 {[%clk 0:00:08]}  Kh7 {[%clk 0:01:38]} 49. Qxg6+ {[%clk 0:00:08]}  Kh8 {[%clk 0:01:39]} 50. f6 {[%clk 0:00:09]}  Qg3+ {[%clk 0:01:22]} 51. Qxg3 {[%clk 0:00:08]}  Kh7 {[%clk 0:01:23]} 52. Qg7# {[%clk 0:00:09]} 1-0


[Site "https://www.chess.com"]